fUSD/lending_fUSD_20250313
["ID","MTS","AMOUNT","RATE_DAILY","PERIOD"]
[356051878,1741858233225,-151.22,9.264e-05,2]
[356051880,1741858233235,-151.22,9.294e-05,2]
[356051882,1741858233244,-151.22,9.324e-05,2]
[356051885,1741858233255,-156.79,9.357e-05,2]
[356051887,1741858233271,-150.0,9.725e-05,2]
[356051888,1741858233281,-150.0,9.727e-05,2]
[356051890,1741858233291,-150.0,9.728e-05,2]
[356051893,1741858233300,-150.0,9.733e-05,2]
[356051895,1741858233315,-150.0,9.734e-05,2]
[356051896,1741858233324,-2662.24115683,9.734e-05,2]
[356051899,1741858233335,-354.53884317,9.734e-05,2]
[356051901,1741858233344,-85.28971796,9.734e-05,2]
[356051903,1741858233356,-4859.60028204,9.734e-05,2]
[356051905,1741858233365,-150.0,9.738e-05,2]
[356051907,1741858233375,-150.0,9.741e-05,2]
[356051909,1741858233384,-150.0,9.743e-05,2]
[356051911,1741858233394,-150.0,9.743e-05,2]
[356051913,1741858233403,-150.0,9.745e-05,2]
[356051915,1741858233413,-150.0,9.749e-05,2]
[356051917,1741858233422,-150.0,9.75e-05,2]
[356051919,1741858233432,-150.0,9.751e-05,2]
[356051921,1741858233441,-150.0,9.755e-05,2]
[356051923,1741858233451,-150.0,9.758e-05,2]
[356051925,1741858233460,-150.0,9.758e-05,2]
[356051927,1741858233469,-150.0,9.762e-05,2]
[356051929,1741858233478,-150.0,9.764e-05,2]
[356051931,1741858233488,-1000.0,9.77e-05,2]
[356051933,1741858233497,-1000.0,9.771e-05,2]
[356051935,1741858233506,-150.0,9.772e-05,2]
[356051937,1741858233517,-150.0,9.774e-05,2]
[356051939,1741858233526,-150.0,9.778e-05,2]
[356051941,1741858233536,-150.0,9.778e-05,2]
[356051943,1741858233545,-175.3479972,9.779e-05,2]
[356051945,1741858233555,-150.0,9.779e-05,2]
[356051947,1741858233568,-150.0,9.779e-05,2]
[356051949,1741858233577,-642.13322361,9.78e-05,2]
[356051951,1741858233588,-357.86677639,9.78e-05,2]
[356051953,1741858233599,-150.0,9.78e-05,2]
[356051955,1741858233608,-150.0,9.783e-05,2]
[356051957,1741858233618,-150.0,9.783e-05,2]
[356051960,1741858233628,-75.62222946,9.784e-05,2]
[356051963,1741858233655,-74.37777054,9.784e-05,2]
[356051965,1741858233665,-150.0,9.798e-05,2]
[356051967,1741858233674,-150.0,9.8e-05,2]
[356051969,1741858233683,-900.0,9.8e-05,3]
[356051971,1741858233692,-550.0,9.802e-05,2]
[356051973,1741858233702,-150.0,9.802e-05,2]
[356051975,1741858233711,-150.0,9.803e-05,2]
[356051977,1741858233721,-150.0,9.806e-05,2]
[356051979,1741858233730,-150.0,9.807e-05,2]
[356051981,1741858233740,-150.0,9.808e-05,2]
[356051983,1741858233749,-150.0,9.808e-05,2]
[356051985,1741858233758,-150.0,9.812e-05,2]
[356051987,1741858233768,-150.0,9.815e-05,2]
[356051989,1741858233777,-1000.0,9.815e-05,2]
[356051991,1741858233787,-150.0,9.819e-05,2]
[356051993,1741858233796,-150.0,9.821e-05,2]
[356051996,1741858233806,-150.0,9.821e-05,2]
[356051997,1741858233815,-150.0,9.824e-05,2]
[356051999,1741858233825,-1000.0,9.824e-05,2]
[356052001,1741858233834,-150.0,9.826e-05,2]
[356052003,1741858233843,-150.0,9.827e-05,2]
[356052006,1741858233853,-150.0,9.845e-05,2]
[356052008,1741858233862,-1000.0,9.845e-05,2]
[356052009,1741858233872,-1000.0,9.846e-05,2]
[356052010,1741858233882,-150.0,9.847e-05,2]
[356052011,1741858233892,-150.0,9.851e-05,2]
[356052012,1741858233902,-150.0,9.854e-05,2]
[356052013,1741858233912,-150.0,9.854e-05,2]
[356052014,1741858233921,-150.0,9.859e-05,2]
[356052016,1741858233931,-150.0,9.862e-05,2]
[356052017,1741858233941,-150.0,9.862e-05,2]
[356052018,1741858233950,-150.0,9.865e-05,2]
[356052019,1741858233959,-150.0,9.867e-05,2]
[356052020,1741858233968,-150.0,9.869e-05,2]
[356052021,1741858233977,-150.0,9.871e-05,2]
[356052022,1741858233987,-150.0,9.872e-05,2]
[356052023,1741858233996,-150.0,9.875e-05,2]
[356052024,1741858234005,-150.0,9.877e-05,2]
[356052025,1741858234015,-150.24169033,9.877e-05,2]
[356052026,1741858234024,-150.0,9.879e-05,2]
[356052027,1741858234035,-150.0,9.879e-05,2]
[356052028,1741858234044,-150.0,9.887e-05,2]
[356052029,1741858234053,-8865.74642958,9.89e-05,2]
[356052030,1741858234062,-150.0,9.894e-05,2]
[356052031,1741858234071,-150.0,9.894e-05,2]
[356052032,1741858234080,-150.0,9.897e-05,2]
[356052033,1741858234090,-1000.0,9.897e-05,2]
[356052034,1741858234099,-150.0,9.898e-05,2]
[356052035,1741858234108,-324.4442,9.9e-05,2]
[356052036,1741858234117,-1000.0,9.9e-05,2]
[356052037,1741858234126,-5000.0,9.9e-05,2]
[356052038,1741858234136,-1900.0,9.9e-05,3]
[356052039,1741858234146,-150.0,9.904e-05,2]
[356052040,1741858234157,-150.0,9.904e-05,2]
[356052041,1741858234167,-150.0,9.904e-05,2]
[356052042,1741858234176,-1000.0,9.907e-05,2]
[356052043,1741858234186,-150.0,9.907e-05,2]
[356052044,1741858234195,-150.95478258,9.909e-05,2]
[356052045,1741858234204,-150.0,9.916e-05,2]
[356052046,1741858234214,-1000.0,9.918e-05,2]
[356052047,1741858234223,-1000.0,9.919e-05,2]
[356052048,1741858234232,-150.0,9.922e-05,2]
[356052049,1741858234242,-150.0,9.923e-05,2]
[356052050,1741858234253,-150.0,9.924e-05,2]
[356052051,1741858234263,-550.0,9.925e-05,2]
[356052052,1741858234273,-150.0,9.925e-05,2]
[356052053,1741858234284,-150.0,9.929e-05,2]
[356052054,1741858234294,-150.0,9.94e-05,2]
[356052055,1741858234304,-150.0,9.941e-05,2]
[356052056,1741858234314,-1000.0,9.946e-05,2]
[356052057,1741858234324,-150.0,9.947e-05,2]
[356052058,1741858234334,-150.0,9.948e-05,2]
[356052059,1741858234343,-150.0,9.949e-05,2]
[356052060,1741858234353,-150.0,9.952e-05,2]
[356052061,1741858234363,-1000.0,9.953e-05,2]
[356052062,1741858234373,-150.0,9.957e-05,2]
[356052063,1741858234383,-1000.0,9.957e-05,2]
[356052064,1741858234392,-150.0,9.958e-05,2]
[356052065,1741858234404,-150.0,9.959e-05,2]
[356052066,1741858234414,-531.53928071,9.96e-05,2]
[356052067,1741858234423,-150.0,9.961e-05,2]
[356052068,1741858234433,-150.0,9.964e-05,2]
[356052069,1741858234442,-150.0,9.967e-05,2]
[356052070,1741858234451,-1000.0,9.967e-05,2]
[356052071,1741858234462,-925.78896038,9.973e-05,2]
[356052072,1741858234471,-150.0,9.973e-05,2]
[356052073,1741858234481,-158.46,9.975e-05,2]
[356052074,1741858234491,-150.0,9.975e-05,2]
[356052075,1741858234500,-150.0,9.982e-05,2]
[356052076,1741858234511,-428.47,9.985e-05,2]
[356052077,1741858234520,-1000.0,9.987e-05,2]
[356052078,1741858234530,-150.0,9.989e-05,2]
[356052079,1741858234541,-150.0,9.989e-05,2]
[356052080,1741858234550,-150.0,9.989e-05,2]
[356052081,1741858234562,-150.0,9.989e-05,2]
[356052082,1741858234574,-420.0,9.994e-05,2]
[356052083,1741858234583,-231.88197921,9.999e-05,2]
[356052084,1741858234593,-500.0,9.999e-05,2]
[356052085,1741858234604,-500.0,9.999e-05,2]
[356052086,1741858234614,-500.0,9.999e-05,2]
[356052087,1741858234623,-500.0,9.999e-05,2]
[356052088,1741858234633,-500.0,9.999e-05,2]
[356052089,1741858234643,-498.97,9.999e-05,2]
[356052090,1741858234654,-2308.61,9.999e-05,2]
[356052091,1741858234663,-500.0,9.999e-05,2]
[356052092,1741858234673,-500.0,9.999e-05,2]
[356052093,1741858234684,-500.0,9.999e-05,2]
[356052094,1741858234694,-500.0,9.999e-05,2]
[356052095,1741858234704,-500.0,9.999e-05,2]
[356052096,1741858234714,-500.0,9.999e-05,2]
[356052097,1741858234724,-500.0,9.999e-05,2]
[356052098,1741858234734,-500.0,9.999e-05,2]
[356052099,1741858234743,-607.38867951,9.999e-05,2]
[356052100,1741858234752,-500.0,9.999e-05,2]
[356052101,1741858234762,-500.0,9.999e-05,2]
[356052102,1741858234772,-500.0,9.999e-05,2]
[356052103,1741858234782,-500.0,9.999e-05,2]
[356052104,1741858234791,-500.0,9.999e-05,2]
[356052105,1741858234801,-350.0,9.999e-05,2]
[356052106,1741858234810,-332.93512532,9.999e-05,2]
[356052107,1741858234819,-500.0,0.0001,2]
[356052108,1741858234829,-1105.68252499,0.0001,2]
[356052109,1741858234839,-196915.00604099,0.0001,2]
[356052110,1741858234848,-259711.91749444,0.0001,2]
[356052111,1741858234861,-343.49853988,0.0001,2]
[356052112,1741858234872,-193871.8216,0.0001,2]
[356052113,1741858234884,-3917.8,0.0001,2]
[356052120,1741858237777,-309.00000075,0.0001,2]
[356052121,1741858237835,-2481.16289941,0.0001,2]
[356052137,1741858239850,-5000.0,9.9e-05,2]
[356052138,1741858239859,-62104.6095,0.0001,2]
[356052139,1741858239962,-592.1886855,0.0001,2]
[356052140,1741858239973,-369.0,0.0001,2]
[356052141,1741858239986,-126912.4074351,0.0001,2]
[356052142,1741858239995,-117627.50680879,0.0001,2]
[356052175,1741858242827,-84213.83782474,0.0001,2]
[356052180,1741858245819,-946.6754568,0.0001,2]
[356052181,1741858245830,-77808.05425873,0.0001,2]
[356052182,1741858245876,-46222.12997888,0.0001,2]
[356052183,1741858245934,-8348.5,0.0001,2]
[356052184,1741858246046,-520.38152683,0.0001,2]
[356052192,1741858628859,-150.0,9.605e-05,2]
[356052193,1741858683101,-150.0,9.604e-05,2]
[356052195,1741858768147,1077.19,8.219e-05,2]
[356052197,1741859029277,-157.0,8.952e-05,2]
[356052198,1741859273573,2000.0,8.623e-05,2]
[356052208,1741859431951,-282.5,8.934e-05,2]
[356052209,1741859431960,-250.0,8.943e-05,2]
[356052210,1741859431970,-7.75,8.952e-05,2]
[356052211,1741859431980,-157.0,8.953e-05,2]
[356052212,1741859431991,-282.5,8.958e-05,2]
[356052213,1741859432001,-242.90758095,8.97e-05,2]
[356052214,1741859432012,-504.74054568,8.97e-05,2]
[356052215,1741859432024,-630.62187337,8.97e-05,2]
[356052216,1741859432034,-175.35120356,8.981e-05,2]
[356052217,1741859432044,-282.5,8.981e-05,2]
[356052218,1741859432053,-282.5,9.005e-05,2]
[356052219,1741859432063,-282.5,9.028e-05,2]
[356052220,1741859432072,-769.74,9.034e-05,2]
[356052221,1741859432082,-282.5,9.052e-05,2]
[356052222,1741859432095,-282.5,9.075e-05,2]
[356052223,1741859432104,-282.5,9.099e-05,2]
[356052224,1741859432113,-282.5,9.122e-05,2]
[356052225,1741859432122,-282.5,9.146e-05,2]
[356052226,1741859432131,-282.5,9.169e-05,2]
[356052227,1741859432142,-282.5,9.193e-05,2]
[356052228,1741859432150,-282.5,9.216e-05,2]
[356052229,1741859432159,-282.5,9.24e-05,2]
[356052230,1741859432168,-282.5,9.263e-05,2]
[356052231,1741859432179,-282.5,9.287e-05,2]
[356052232,1741859432188,-282.5,9.31e-05,2]
[356052233,1741859432197,-282.5,9.334e-05,2]
[356052234,1741859432206,-150.0,9.357e-05,2]
[356052235,1741859432215,-300.0,9.357e-05,2]
[356052236,1741859432224,-282.5,9.357e-05,2]
[356052237,1741859432232,-17.94758551,9.381e-05,2]
[356052238,1741859432709,-264.55241449,9.381e-05,2]
[356052239,1741859432718,-5155.02958284,9.605e-05,2]
[356052240,1741859432730,-18594.97041716,9.605e-05,2]
[356052241,1741859432742,-150.99,9.67e-05,2]
[356052242,1741859432752,-1220.81,9.67e-05,2]
[356052243,1741859432762,-4988.00726307,9.67e-05,2]
[356052244,1741859432774,-2412.40273693,9.67e-05,2]
[356052245,1741859432784,-150.0,9.749e-05,2]
[356052246,1741859432793,-150.0,9.755e-05,2]
[356052247,1741859432802,-150.0,9.777e-05,2]
[356052248,1741859432813,-150.0,9.781e-05,2]
[356052249,1741859432823,-150.0,9.784e-05,2]
[356052250,1741859432833,-150.0,9.791e-05,2]
[356052251,1741859432842,-1200.0,9.8e-05,3]
[356052252,1741859432852,-150.0,9.825e-05,2]
[356052253,1741859432862,-150.0,9.83e-05,2]
[356052254,1741859432872,-150.0,9.835e-05,2]
[356052255,1741859432882,-165.42722507,9.844e-05,2]
[356052256,1741859432892,-150.0,9.847e-05,2]
[356052257,1741859432901,-150.0,9.862e-05,2]
[356052258,1741859432911,-150.0,9.864e-05,2]
[356052259,1741859432920,-150.0,9.869e-05,2]
[356052260,1741859432930,-1256.0956692,9.888e-05,2]
[356052261,1741859432944,-1198.65,9.888e-05,2]
[356052262,1741859432956,-953.44,9.888e-05,2]
[356052263,1741859432971,-633.91785618,9.888e-05,2]
[356052264,1741859432982,-1238.04,9.888e-05,2]
[356052301,1741859437987,-150.0,9.772e-05,2]
[356052302,1741859437996,-150.0,9.791e-05,2]
[356052303,1741859438006,-150.0,9.822e-05,2]
[356052304,1741859438016,-17.78284826,9.831e-05,2]
[356052305,1741859438094,-132.21715174,9.831e-05,2]
[356052306,1741859438104,-150.0,9.847e-05,2]
[356052307,1741859438116,-150.0,9.865e-05,2]
[356052308,1741859438125,-2097.80289257,9.888e-05,2]
[356052309,1741859438134,-175.3479972,9.888e-05,2]
[356052310,1741859438144,-1429.3883,9.9e-05,2]
[356052311,1741859438154,-4800.2134,9.9e-05,2]
[356052312,1741859438163,-2500.0,9.9e-05,2]
[356052313,1741859438172,-5000.0,9.9e-05,2]
[356052314,1741859438181,-2400.0,9.9e-05,3]
[356052315,1741859438194,-150.0,9.963e-05,2]
[356052316,1741859438203,-150.0,9.971e-05,2]
[356052317,1741859438212,-495.35244486,9.973e-05,2]
[356052318,1741859438222,-160.98363735,9.973e-05,2]
[356052319,1741859438231,-696.02656301,9.986e-05,2]
[356052320,1741859438242,-181.04474945,9.987e-05,2]
[356052321,1741859438251,-2387.463,9.987e-05,2]
[356052322,1741859438260,-2212.42,9.999e-05,2]
[356052323,1741859438269,-1232.03026769,9.999e-05,3]
[356052324,1741859438279,-578.0,0.0001,2]
[356052325,1741859438289,-552.84126249,0.0001,2]
[356052326,1741859438298,-159840.38797793,0.0001,2]
[356052327,1741859438307,-54658.61023035,0.0001,2]
[356052328,1741859438319,-52326.43647794,0.0001,2]
[356052329,1741859438335,-3086.70903572,0.0001,2]
[356052346,1741859439917,-2389.69999988,9.9e-05,2]
[356052347,1741859440079,-2452.45000008,9.9e-05,2]
[356052348,1741859440092,-4357.89850004,9.9e-05,2]
[356052349,1741859440102,-23391.79262566,0.0001,2]
[356052350,1741859440115,-1210.33959435,0.0001,2]
[356052351,1741859440125,-215579.88352384,0.0001,2]
[356052352,1741859440136,-3668.57380344,0.0001,2]
[356052353,1741859440147,-662.4975,0.0001,2]
[356052394,1741859446241,-211.17759217,9.797e-05,2]
[356052395,1741859446252,-650.06069683,9.86e-05,2]
[356052396,1741859446459,-349.93930317,9.86e-05,2]
[356052397,1741859446468,-301.24819683,9.943e-05,2]
[356052404,1741860421083,-151.73,9.376e-05,2]
[356052408,1741860526634,177.71,7.245e-05,2]
[356052414,1741860632156,-592.36206145,9.37e-05,2]
[356052415,1741860632167,-2388.80000009,9.37e-05,2]
[356052416,1741860632212,-13857.20159896,9.37e-05,2]
[356052417,1741860632221,-9.92,9.376e-05,2]
[356052418,1741860632230,-2000.0,9.376e-05,2]
[356052419,1741860632239,-1081.26,9.379e-05,2]
[356052420,1741860632249,-158.46,9.385e-05,2]
[356052421,1741860632258,-1191.29,9.406e-05,2]
[356052422,1741860632268,-361.08,9.443e-05,2]
[356052423,1741860632277,-161.65,9.469e-05,2]
[356052424,1741860632286,-161.65,9.563e-05,2]
[356052425,1741860632296,-161.65,9.657e-05,2]
[356052426,1741860632305,-161.65,9.751e-05,2]
[356052427,1741860632314,-150.0,9.791e-05,2]
[356052428,1741860632323,-161.65,9.844e-05,2]
[356052429,1741860632333,-1000.0,9.847e-05,2]
[356052430,1741860632344,-150.0,9.851e-05,2]
[356052431,1741860632354,-200.0,9.893e-05,2]
[356052432,1741860632363,-150.0,9.899e-05,2]
[356052433,1741860632372,-2087.1923,9.9e-05,2]
[356052434,1741860632382,-24298.9096,9.9e-05,2]
[356052435,1741860632391,-3330.1078,9.9e-05,2]
[356052436,1741860632401,-201.26856129,9.9e-05,2]
[356052437,1741860632410,-2662.266,9.9e-05,2]
[356052438,1741860632419,-4118.1511,9.9e-05,2]
[356052439,1741860632428,-1000.0,9.9e-05,3]
[356052440,1741860632438,-1422.0,9.9e-05,2]
[356052441,1741860632447,-7.36282815,9.943e-05,2]
[356052442,1741860632457,-165.56210334,9.973e-05,2]
[356052443,1741860632466,-2120.23,9.999e-05,2]
[356052444,1741860632476,-852.46962598,0.0001,2]
[356052445,1741860632486,-158003.05737965,0.0001,2]
[356052446,1741860632498,-5840.55587536,0.0001,2]
[356052447,1741860632519,-4547.26743359,0.0001,2]
[356052448,1741860632531,-4947.25262297,0.0001,2]
[356052449,1741860632543,-3777.19374894,0.0001,2]
[356052450,1741860632556,-551.93113899,0.0001,2]
[356052451,1741860632570,-639.900128,0.0001,2]
[356052452,1741860632581,-475.47500001,0.0001,2]
[356052453,1741860632595,-3700.0,0.0001,2]
[356052454,1741860632606,-13427.43366975,0.0001,2]
[356052455,1741860632617,-2463.44849996,0.0001,2]
[356052456,1741860632628,-595.65673478,0.0001,2]
[356052457,1741860632640,-7933.01844227,0.0001,2]
[356052458,1741860632652,-762.17542217,0.0001,2]
[356052459,1741860632664,-3846.30123235,0.0001,2]
[356052463,1741860638199,-155075.03428184,0.0001,2]
[356052464,1741860638208,-62574.02223165,0.0001,2]
[356052465,1741860638219,-417.59,0.0001,2]
[356052466,1741860638256,-13401.88,0.0001,2]
[356052467,1741860638267,-3928.34057448,0.0001,2]
[356052468,1741860638278,-1585.68207854,0.0001,2]
[356052469,1741860638318,-951.89649647,0.0001,2]
[356052470,1741860638330,-3991.78840413,0.0001,2]
[356052471,1741860638375,-334.47,0.0001,2]
[356052472,1741860638387,-547.35,0.0001,2]
[356052477,1741860640216,-416.59088653,0.0001,2]
[356052478,1741860640228,-1881.61366556,0.0001,2]
[356052479,1741860640237,-500.0,0.0001,2]
[356052480,1741860640247,-7227.98633436,0.0001,2]
[356052481,1741860640345,-585.66149412,0.0001,2]
[356052482,1741860640402,-4555.55,0.0001,2]
[356052483,1741860640462,-448.08275108,0.0001,2]
[356052484,1741860640474,-1034.0,0.0001,2]
[356052485,1741860640521,-615.6505,0.0001,2]
[356052486,1741860640532,-240543.98287286,0.0001,2]
[356052517,1741860643234,-8812.05269706,0.0001,2]
[356052570,1741860647122,-16724.16566001,0.0001,2]
[356052583,1741860721273,-283.50178457,9e-05,2]
[356052584,1741861148139,-5532.0,0.000102,5]
[356052585,1741861181397,-14996.2406638,0.0001,3]
[356052586,1741861181421,-2000.0,0.0001,3]
[356052588,1741861222531,11000.0,8.9e-05,2]
[356052589,1741861318771,1221.98,8.219e-05,2]
[356052590,1741861445860,-250.0,8.99e-05,2]
[356052591,1741861445882,-300.0,8.995e-05,2]
[356052592,1741861445904,-150.0,8.995e-05,2]
[356052593,1741861445926,-164.64,8.996e-05,2]
[356052594,1741861445948,-23900.0,8.996e-05,2]
[356052595,1741861445969,-500.0,8.996e-05,2]
[356052596,1741861445990,-891.3,8.996e-05,2]
[356052597,1741861446011,-150.0,9e-05,2]
[356052598,1741861446347,-216.49821543,9e-05,2]
[356052599,1741861446371,-500.0,9e-05,2]
[356052600,1741861446393,-500.0,9e-05,2]
[356052601,1741861446416,-500.0,9e-05,2]
[356052602,1741861446439,-500.0,9e-05,2]
[356052603,1741861446462,-500.0,9e-05,2]
[356052604,1741861446485,-500.0,9e-05,2]
[356052605,1741861446506,-500.0,9e-05,2]
[356052606,1741861446529,-500.0,9e-05,2]
[356052607,1741861446551,-500.0,9e-05,2]
[356052608,1741861446575,-500.0,9e-05,2]
[356052609,1741861446597,-500.0,9e-05,2]
[356052610,1741861446619,-500.0,9e-05,2]
[356052611,1741861446645,-500.0,9e-05,2]
[356052612,1741861446668,-500.0,9e-05,2]
[356052613,1741861446690,-500.0,9e-05,2]
[356052614,1741861446712,-500.0,9e-05,2]
[356052615,1741861446734,-500.0,9e-05,2]
[356052616,1741861446760,-500.0,9e-05,2]
[356052617,1741861446782,-500.0,9e-05,2]
[356052618,1741861446803,-500.0,9e-05,2]
[356052619,1741861446827,-500.0,9e-05,2]
[356052620,1741861446848,-500.0,9e-05,2]
[356052621,1741861446869,-500.0,9e-05,2]
[356052622,1741861446891,-500.0,9e-05,2]
[356052623,1741861446913,-500.0,9e-05,2]
[356052624,1741861446935,-500.0,9e-05,2]
[356052625,1741861446958,-500.0,9e-05,2]
[356052626,1741861446981,-500.0,9e-05,2]
[356052627,1741861447002,-500.0,9e-05,2]
[356052628,1741861447024,-500.0,9e-05,2]
[356052629,1741861447047,-500.0,9e-05,2]
[356052630,1741861447068,-500.0,9e-05,2]
[356052631,1741861447092,-500.0,9e-05,2]
[356052632,1741861447113,-500.0,9e-05,2]
[356052633,1741861447134,-329.57,9e-05,2]
[356052634,1741861447155,-507.73,9e-05,2]
[356052635,1741861447177,-705.48,9.031e-05,2]
[356052636,1741861447198,-550.0,9.135e-05,2]
[356052637,1741861447220,-1000.0,9.376e-05,2]
[356052638,1741861447244,-150.0,9.728e-05,2]
[356052639,1741861447266,-150.0,9.761e-05,2]
[356052640,1741861447289,-150.0,9.762e-05,2]
[356052641,1741861447311,-150.0,9.793e-05,2]
[356052642,1741861447335,-150.0,9.829e-05,2]
[356052643,1741861447358,-150.0,9.838e-05,2]
[356052644,1741861447379,-420.0,9.895e-05,2]
[356052645,1741861447401,-255.0,9.895e-05,2]
[356052646,1741861447424,-150.0,9.899e-05,2]
[356052647,1741861447446,-150.0,9.899e-05,2]
[356052648,1741861447467,-5000.0,9.9e-05,2]
[356052649,1741861447489,-182.1657,9.9e-05,2]
[356052650,1741861447511,-926.2269,9.9e-05,2]
[356052651,1741861447532,-2425.984,9.9e-05,2]
[356052652,1741861447554,-177.7041,9.9e-05,2]
[356052653,1741861447576,-550.0,9.9e-05,2]
[356052654,1741861447598,-333.52219863,9.919e-05,2]
[356052655,1741861447622,-150.0,9.923e-05,2]
[356052656,1741861447646,-150.0,9.95e-05,2]
[356052657,1741861447670,-150.0,9.968e-05,2]
[356052658,1741861447693,-150.0,9.968e-05,2]
[356052659,1741861447715,-538.64153023,9.973e-05,2]
[356052660,1741861447742,-150.0,9.981e-05,2]
[356052661,1741861447765,-150.0,9.986e-05,2]
[356052662,1741861447788,-3377.39812289,9.99e-05,2]
[356052663,1741861447813,-150.0,9.991e-05,2]
[356052664,1741861447835,-789.62772937,9.999e-05,2]
[356052665,1741861447857,-2136.63,9.999e-05,2]
[356052666,1741861447879,-500.0,9.999e-05,2]
[356052667,1741861447903,-331.21,9.999e-05,2]
[356052668,1741861447930,-245262.43083965,0.0001,2]
[356052682,1741861801247,-167.71,8.97e-05,2]
[356052683,1741861801275,-1006.66,8.97e-05,2]
[356052684,1741861801302,-614.13919535,8.97e-05,2]
[356052691,1741861832329,-261.96657699,8.969e-05,2]
[356052692,1741861832411,-38.03342301,8.969e-05,2]
[356052693,1741861832420,-2161.98080465,8.97e-05,2]
[356052694,1741861832430,-167.71,9.12e-05,2]
[356052695,1741861832439,-167.71,9.269e-05,2]
[356052696,1741861832449,-167.71,9.419e-05,2]
[356052697,1741861832459,-900.0,9.9e-05,3]
[356052698,1741861832468,-2047.6,9.999e-05,2]
[356052699,1741861832479,-500.0,9.999e-05,2]
[356052700,1741861832489,-233.05458772,9.999e-05,2]
[356052701,1741861832498,-500.0,9.999e-05,2]
[356052702,1741861832508,-500.0,9.999e-05,2]
[356052703,1741861832518,-410.74255684,9.999e-05,2]
[356052704,1741861832527,-500.0,9.999e-05,2]
[356052705,1741861832537,-500.0,9.999e-05,2]
[356052706,1741861832546,-500.0,9.999e-05,2]
[356052707,1741861832555,-500.0,9.999e-05,2]
[356052708,1741861832565,-500.0,9.999e-05,2]
[356052709,1741861832575,-500.0,9.999e-05,2]
[356052710,1741861832584,-500.0,9.999e-05,2]
[356052711,1741861832594,-300.0,9.999e-05,2]
[356052712,1741861832603,-525.0,0.0001,2]
[356052713,1741861832612,-688.18994981,0.0001,2]
[356052714,1741861832621,-3552.86867797,0.0001,2]
[356052715,1741861832633,-1546.39194612,0.0001,2]
[356052716,1741861832647,-247599.14271996,0.0001,2]
[356052717,1741861832660,-2273.86924211,0.0001,2]
[356052718,1741861832670,-1210.33959435,0.0001,2]
[356052719,1741861832679,-750.0491763,0.0001,2]
[356052720,1741861832689,-1000.0,0.0001,2]
[356052721,1741861832698,-1000.0,0.0001,2]
[356052722,1741861832707,-1000.0,0.0001,2]
[356052723,1741861832717,-1000.0,0.0001,2]
[356052724,1741861832726,-1000.0,0.0001,2]
[356052725,1741861832735,-1000.0,0.0001,2]
[356052726,1741861832745,-1008.0,0.0001,2]
[356052727,1741861832754,-1000.0,0.0001,2]
[356052728,1741861832764,-1000.0,0.0001,2]
[356052729,1741861832773,-1000.0,0.0001,2]
[356052730,1741861832783,-1000.0,0.0001,2]
[356052731,1741861832792,-1000.0,0.0001,2]
[356052732,1741861832802,-271072.77982435,0.0001,2]
[356052733,1741861832814,-3614.97335,0.0001,2]
[356052734,1741861832826,-2085.94825,0.0001,2]
[356052735,1741861832837,-113073.40651965,0.0001,2]
[356052736,1741861832848,-34876.44221045,0.0001,2]
[356052737,1741861838276,-491.99999916,0.0001,2]
[356052738,1741861838288,-1072.35,0.0001,2]
[356052739,1741861838393,-12932.84336857,0.0001,2]
[356052740,1741861838454,-9260.05823244,0.0001,2]
[356052748,1741861840310,-5804.6053512,0.0001,2]
[356052749,1741861840434,-34403.02563865,0.0001,2]
[356052750,1741861840446,-2300.15870307,0.0001,2]
[356052751,1741861840497,-1710.19466749,0.0001,2]
[356052752,1741861840509,-445.55892089,0.0001,2]
[356052753,1741861840520,-465.108,0.0001,2]
[356052754,1741861840531,-297.9035,0.0001,2]